Workbook

Sheet Grafici Rendiconto 2018
A2: ENTRATA PER TITOLI
A3: Titolo | B3: Descriz. Titolo | C3: Accert. 2018
A4: 1 | B4: Entrate correnti di natura tributaria contributiva e pereq. | C4: 7895844.91
A5: 2 | B5: Trasferimenti correnti | C5: 1726746.56
A6: 3 | B6: Entrate extratributarie | C6: 1049486.87
A7: 4 | B7: Entrate in conto capitale | C7: 762723.28
A8: 5 | B8: Entrate da riduzione di attività finanziarie | C8: 0
A9: 6 | B9: Accensione Prestiti | C9: 0
A10: 7 | B10: Anticipazioni da istituto tesoriere/cassiere | C10: 0
A11: 9 | B11: Entrate per conto terzi e partite di giro | C11: 1020231.81
A12: Totale complessivo | C12: =SUM(C4:C11) -> 12455033.43
A20: SPESA PER TITOLI
A21: Titolo | B21: Descr. Titolo | C21: Imp. 2018
A22: 1 | B22: Spese correnti | C22: 8588372.2
A23: 2 | B23: Spese in conto capitale | C23: 1747830.96
A24: 3 | B24: Spese per incremento attività finanziaria | C24: 0
A25: 4 | B25: Rimborso di prestiti | C25: 427079.81
A26: 5 | B26: Chiusura anticipazioni ricevute da istituto tesoriere/cassiere | C26: 0
A27: 7 | B27: Spese per conto terzi e partite di giro | C27: 1020231.81
A28: Totale complessivo | C28: =SUM(C22:C27) -> 11783514.78
A40: SPESA CORRENTE 2018 PER MISSIONI
A41: Miss. | B41: Descrizione Missione | C41: Imp. 2018
A42: 1 | B42: Servizi istituzionali | C42: 2123272.21
A43: 3 | B43: Ordine pubblico | C43: 453233.42
A44: 4 | B44: Istruzione | C44: 745914.22
A45: 5 | B45: Attività culturali | C45: 443004.35
A46: 6 | B46: Politiche giovanili | C46: 228355.44
A47: 7 | B47: Turismo | C47: 41602.48
A48: 8 | B48: Edilizia abitativa | C48: 154351.5
A49: 9 | B49: Tutela del territorio | C49: 2421201.37
A50: 10 | B50: Trasporti e diritto alla mobilità | C50: 615627.89
A51: 11 | B51: Soccorso civile | C51: 13181.24
A52: 12 | B52: Politiche sociali | C52: 1127720
A53: 14 | B53: Sviluppo economico | C53: 89310.85
A54: 50 | B54: Debito pubblico | C54: 131597.23
A55: Totale complessivo | C55: =SUM(C42:C54) -> 8588372.2
A65: SPESA IN CONTO CAPITALE 2018 PER MISSIONI
A66: Miss. | B66: Descrizione Missione | C66: Imp. 2018
A67: 1 | B67: Servizi istituzionali | C67: 142917.43
A68: 3 | B68: Ordine pubblico | C68: 22570
A69: 4 | B69: Istruzione | C69: 163321.6
A70: 5 | B70: Attività culturali | C70: 27082.19
A71: 6 | B71: Politiche giovanili | C71: 171760.26
A72: 7 | B72: Turismo | C72: 0
A73: 8 | B73: Edilizia abitativa | C73: 16777.9
A74: 9 | B74: Tutela del territorio | C74: 74821.99
A75: 10 | B75: Trasporti e diritto alla mobilità | C75: 968317.5
A76: 11 | B76: Soccorso civile | C76: 0
A77: 12 | B77: Politiche sociali | C77: 160262.09
A78: Totale complessivo | C78: =SUM(C67:C77) -> 1747830.96
A86: INDEBITAMENTO
A87: Analisi gestione indebitamento | C87: Rend. 2014 | D87: Rend. 2015 | E87: Rend. 2016 | F87: Rend. 2017 | G87: Rend. 2018
A88: Debito residuo al 31/12 anno precedente | C88: 5257940.5 | D88: =C94 -> 4585155.76 | E88: =D94 -> 4003472.17 | F88: =E94 -> 3598828.14 | G88: =F94 -> 3185224.55
A89: Totale debito residuo | C89: =SUM(C88:C88) -> 5257940.5 | D89: =SUM(D88:D88) -> 4585155.76 | E89: =SUM(E88:E88) -> 4003472.17 | F89: =SUM(F88:F88) -> 3598828.14 | G89: =SUM(G88:G88) -> 3185224.55
A90: Assunzione di mutui
A91: Totale assunzione indebitamento | C91: =SUM(C90:C90) -> 0 | D91: =SUM(D90:D90) -> 0 | E91: =SUM(E90:E90) -> 0 | F91: =SUM(F90:F90) -> 0 | G91: =SUM(G90:G90) -> 0
A92: Quota capitale ammortamento mutui | C92: 672784.74 | D92: 581683.59 | E92: 404644.03 | F92: 413603.59 | G92: 427079.81
A93: Totale quota capitale | C93: =SUM(C92:C92) -> 672784.74 | D93: =SUM(D92:D92) -> 581683.59 | E93: =SUM(E92:E92) -> 404644.03 | F93: =SUM(F92:F92) -> 413603.59 | G93: =SUM(G92:G92) -> 427079.81
A94: Debito residuo al 31/12 | C94: =C88-C92 -> 4585155.76 | D94: =D88-D92 -> 4003472.17 | E94: =E88-E92 -> 3598828.14 | F94: =F88-F92 -> 3185224.55 | G94: =G88-G92 -> 2758144.74
A95: Totale debito residuo al 31/12 dell'esercizio | C95: =SUM(C94:C94) -> 4585155.76 | D95: =SUM(D94:D94) -> 4003472.17 | E95: =SUM(E94:E94) -> 3598828.14 | F95: =SUM(F94:F94) -> 3185224.55 | G95: =SUM(G94:G94) -> 2758144.74
